bitfinex/quotes_BTCUSD_20240811
["timestamp","ask_amount","ask_price","bid_price","bid_amount"]
[1723346504184,0.0755,61346.0,61333.0,0.0063216]
[1723346504368,0.0651,61345.0,61335.0,0.0063216]
[1723346504563,0.0651,61345.0,61344.0,0.163015]
[1723346504851,0.0601,61345.0,61344.0,0.16381492]
[1723346505166,0.1356,61345.0,61344.0,0.65285992]
[1723346505368,0.0755,61344.0,61333.0,0.0063216]
[1723346505566,0.0755,61344.0,61343.0,0.163017]
[1723346505825,0.0755,61344.0,61330.0,0.0063216]
[1723346506124,0.0001,61349.0,61338.0,0.001]
[1723346506125,0.163026,61340.0,61338.0,0.001]
[1723346506313,0.163026,61340.0,61331.0,0.16381492]
[1723346506314,0.163036,61336.0,61331.0,0.16381492]
[1723346506517,0.0755,61337.0,61331.0,0.16381492]
[1723346506672,0.0755,61337.0,61333.0,0.167042]
[1723346506872,0.0755,61336.0,61333.0,0.16381492]
[1723346507235,0.0568,61334.0,61330.0,0.004]
[1723346507442,0.0568,61331.0,61328.0,0.163056]
[1723346507660,0.0755,61330.0,61329.0,0.163054]
[1723346507866,0.0651,61329.0,61328.0,0.16381492]
[1723346508038,0.1406,61329.0,61328.0,0.32687192]
[1723346508461,0.1406,61329.0,61328.0,0.65298692]
[1723346508664,0.1406,61329.0,61328.0,0.97910192]
[1723346508863,0.1406,61329.0,61328.0,0.98317051]
[1723346509609,0.1406,61329.0,61328.0,0.98949211]
[1723346510038,0.1406,61329.0,61328.0,0.98317051]
[1723346510236,0.1406,61329.0,61328.0,0.33094051]
[1723346510436,0.1406,61329.0,61328.0,0.99017051]
[1723346510606,0.1406,61329.0,61328.0,0.66405551]
[1723346510809,0.1406,61329.0,61328.0,0.65705551]
[1723346511375,0.1406,61329.0,61328.0,0.16788351]
[1723346511574,0.1406,61329.0,61328.0,0.33094051]
[1723346511878,0.1406,61329.0,61328.0,0.49424059]
[1723346512208,0.1406,61329.0,61328.0,0.50124059]
[1723346512414,0.1406,61329.0,61328.0,0.98949211]
[1723346512839,0.1406,61329.0,61328.0,1.34560711]
[1723346513003,0.1406,61329.0,61328.0,1.33860711]
[1723346513514,0.1406,61329.0,61328.0,1.34660711]
[1723346513718,0.1406,61329.0,61328.0,1.33860711]
[1723346514113,0.1406,61329.0,61328.0,1.35260711]
[1723346514515,0.1406,61329.0,61328.0,1.35360711]
[1723346514717,0.326106,61349.0,61338.0,0.0063216]
[1723346514918,0.326106,61349.0,61339.0,0.65921952]
[1723346514919,0.0755,61340.0,61339.0,0.65921952]
[1723346515077,0.0755,61340.0,61339.0,0.98527552]
[1723346515482,0.0755,61340.0,61339.0,0.65921952]
[1723346516161,0.0795,61340.0,61339.0,0.66121952]
[1723346516807,0.0795,61340.0,61339.0,0.98727552]
[1723346517013,0.0795,61340.0,61339.0,1.31333152]
[1723346517171,0.0795,61340.0,61339.0,0.98727552]
[1723346517373,0.0795,61340.0,61339.0,1.31333152]
[1723346517579,0.0795,61340.0,61339.0,0.98727552]
[1723346518018,0.0795,61340.0,61339.0,0.66121952]
[1723346518224,0.0795,61340.0,61339.0,0.32884292]
[1723346519494,0.0795,61340.0,61339.0,0.002]
[1723346520051,0.242525,61340.0,61339.0,0.002]
[1723346520208,0.568576,61340.0,61339.0,0.002]
[1723346520413,0.960027,61340.0,61339.0,0.002]
[1723346520833,0.9637054,61340.0,61339.0,0.002]
[1723346521036,0.960027,61340.0,61339.0,0.002]
[1723346521600,0.633976,61340.0,61339.0,0.002]
[1723346521803,0.1449,61340.0,61339.0,0.66122052]
[1723346522219,0.1449,61340.0,61339.0,0.6608533]
[1723346522616,0.1409,61340.0,61339.0,0.3347973]
[1723346522818,0.1409,61340.0,61339.0,0.33316452]
[1723346523024,0.1409,61340.0,61339.0,0.32684292]
[1723346523264,0.1409,61340.0,61339.0,0.34116452]
[1723346523505,0.1409,61340.0,61339.0,0.32684292]
[1723346523870,0.1409,61340.0,61339.0,0.163028]
[1723346524083,0.1449,61340.0,61338.0,0.1639441]
[1723346524691,0.1409,61340.0,61338.0,0.0009141]
[1723346525044,0.0791,61339.0,61338.0,0.0009141]
[1723346525519,0.242128,61339.0,61338.0,0.0089141]
[1723346525754,0.568184,61339.0,61338.0,0.00498554]
[1723346525888,0.568184,61339.0,61338.0,0.00598554]
[1723346525889,0.242128,61339.0,61338.0,0.00598554]
[1723346526086,0.0791,61339.0,61338.0,0.01298554]
[1723346526313,0.242128,61339.0,61338.0,0.00598554]
[1723346526708,0.242128,61339.0,61338.0,0.00998554]
[1723346527109,0.0791,61339.0,61338.0,0.00998554]
[1723346527317,0.242128,61339.0,61338.0,0.00898554]
[1723346527718,0.245128,61339.0,61338.0,0.00898554]
[1723346527919,0.245128,61339.0,61338.0,0.00498554]
[1723346528101,0.242128,61339.0,61338.0,0.00498554]
[1723346528298,0.242128,61339.0,61338.0,0.00898554]
[1723346528524,0.245128,61339.0,61338.0,0.00898554]
[1723346528728,0.0821,61339.0,61338.0,0.00898554]
[1723346530146,0.245128,61339.0,61338.0,0.00898554]
[1723346530699,0.0821,61339.0,61338.0,0.00898554]
[1723346532303,0.571184,61339.0,61338.0,0.14438846]
[1723346532677,0.571184,61339.0,61338.0,0.00898554]
[1723346532885,0.0821,61339.0,61338.0,0.30742274]
[1723346533061,0.0821,61339.0,61338.0,0.14439174]
[1723346533669,0.245128,61339.0,61338.0,0.14439174]
[1723346534423,0.0821,61339.0,61338.0,0.14439174]
[1723346534975,0.245128,61339.0,61338.0,0.14439174]
[1723346536002,0.0821,61339.0,61338.0,0.14439174]
[1723346537089,0.003,61339.0,61338.0,0.14439174]
[1723346537413,0.003,61339.0,61338.0,0.47755926]
[1723346537544,0.003,61339.0,61338.0,1.12968326]
[1723346538152,0.000831,61340.0,61339.0,0.8214616]
[1723346538394,0.000831,61340.0,61339.0,0.98527652]
[1723346538569,0.000831,61340.0,61339.0,1.12067082]
[1723346539429,0.000831,61340.0,61339.0,1.12967082]
[1723346539779,0.000831,61340.0,61339.0,0.80768626]
[1723346541005,0.000831,61340.0,61339.0,0.80968626]
[1723346541371,0.000831,61340.0,61339.0,0.31349374]
[1723346541575,0.000831,61340.0,61339.0,0.31981534]
[1723346541784,0.000831,61340.0,61339.0,0.64587134]
[1723346542089,0.000831,61340.0,61339.0,0.51047704]
[1723346542342,0.000831,61340.0,61339.0,0.64586897]
[1723346542744,0.000831,61340.0,61339.0,0.97192494]
[1723346542961,0.000831,61340.0,61339.0,0.64586894]
[1723346545302,0.000831,61340.0,61339.0,2.25510786]
[1723346545498,0.000831,61340.0,61339.0,2.76037352]
[1723346545698,0.000831,61340.0,61339.0,2.8983299]
[1723346546060,0.000831,61340.0,61339.0,2.94464844]
[1723346546345,0.000831,61340.0,61339.0,2.94099814]
[1723346546551,0.000831,61340.0,61339.0,3.64199814]
[1723346546784,0.000831,61340.0,61339.0,3.27805414]
[1723346546973,0.0001,61349.0,61348.0,1.4853576]
[1723346547123,0.0001,61349.0,61348.0,2.71780563]
[1723346547344,0.0001,61349.0,61348.0,2.63126792]
[1723346547561,0.0001,61369.0,61368.0,1.1469786]
[1723346547711,0.0001,61369.0,61368.0,1.79505926]
[1723346548120,0.0001,61369.0,61368.0,1.46915726]
[1723346548346,0.0098161,61379.0,61378.0,0.0063216]
[1723346548521,0.0098161,61379.0,61378.0,1.11107326]
[1723346548751,0.30023,61400.0,61399.0,0.1691906]
[1723346548752,0.2954302,61400.0,61399.0,0.1691906]
[1723346548959,0.2954302,61400.0,61399.0,1.16328152]
[1723346549166,0.2954302,61400.0,61399.0,0.65242192]
[1723346549389,0.2954302,61400.0,61399.0,0.98448152]
[1723346549589,0.2954302,61400.0,61399.0,1.31021952]
[1723346549767,0.2954302,61400.0,61399.0,0.98448152]
[1723346549985,0.2954302,61400.0,61399.0,0.98948152]
[1723346550386,0.2954302,61400.0,61399.0,1.64502896]
[1723346550586,0.2954302,61400.0,61399.0,1.80922896]
[1723346551027,0.2954302,61400.0,61399.0,1.48349096]
[1723346551261,0.00181239,61414.0,61410.0,0.0063216]
[1723346551262,1.9e-07,61414.0,61410.0,0.0063216]
[1723346551456,0.0001,61429.0,61428.0,0.5734976]
[1723346551702,0.0001,61429.0,61428.0,1.2246656]
[1723346551936,0.0001,61429.0,61428.0,0.9614816]
[1723346552177,0.0001,61429.0,61428.0,0.9714816]
[1723346552336,0.0120857,61444.0,61443.0,0.488256]
[1723346552538,0.0120857,61444.0,61443.0,0.16381492]
[1723346552790,0.0120857,61444.0,61443.0,0.33288852]
[1723346552968,0.0120857,61444.0,61443.0,0.17013652]
[1723346553130,0.0120857,61444.0,61443.0,0.49564052]
[1723346553333,0.0120857,61444.0,61443.0,0.17013652]
[1723346553754,0.0120857,61444.0,61443.0,0.33288852]
[1723346553991,0.0120857,61444.0,61443.0,0.17013652]
[1723346554195,0.0120857,61444.0,61443.0,0.17113652]
[1723346554346,0.0120857,61444.0,61443.0,0.33388852]
[1723346554547,0.0120857,61444.0,61443.0,0.65939252]
[1723346554756,0.0120857,61444.0,61443.0,0.33388852]
[1723346554952,0.0120857,61444.0,61443.0,0.17520796]
[1723346555154,0.0120857,61444.0,61443.0,0.16888636]
[1723346555155,0.1748347,61444.0,61443.0,0.16888636]
[1723346555352,0.0120857,61444.0,61443.0,0.16888636]
[1723346555703,0.9058327,61444.0,61443.0,0.00507144]
[1723346555852,0.5803337,61444.0,61443.0,0.00507144]
[1723346556050,0.9058327,61444.0,61443.0,0.00507144]
[1723346556273,1.3214101,61444.0,61443.0,0.00507144]
[1723346556473,1.3014101,61444.0,61443.0,0.00507144]
[1723346556675,1.4014101,61444.0,61443.0,0.00507144]
[1723346557075,1.4214101,61444.0,61443.0,0.00507144]
[1723346557276,1.4214101,61444.0,61423.0,0.49107874]
[1723346557277,0.162802,61424.0,61423.0,0.49107874]
[1723346557662,0.325599,61426.0,61423.0,0.66121526]
[1723346557663,0.08,61425.0,61423.0,0.66121526]
[1723346557867,0.405601,61425.0,61421.0,0.0063216]
[1723346558044,0.162808,61422.0,61421.0,0.0063216]
[1723346558195,0.162808,61422.0,61412.0,0.325666]
[1723346558196,0.08,61425.0,61420.0,0.0063216]
[1723346558397,0.162808,61422.0,61417.0,0.0063216]
[1723346558809,0.0805,61430.0,61421.0,0.0063216]
[1723346559035,0.325571,61431.0,61422.0,0.16381492]
[1723346559234,0.325571,61431.0,61413.0,0.325663]
[1723346559235,0.162798,61426.0,61424.0,0.16381492]
[1723346559440,0.0805,61437.0,61428.0,0.0063216]
[1723346559651,0.0805,61437.0,61429.0,0.16381492]
[1723346559885,0.162784,61432.0,61429.0,0.16381492]
[1723346560046,0.325556,61434.0,61429.0,0.16381492]
[1723346560408,0.0805,61437.0,61429.0,0.16381492]
[1723346560409,0.488359,61430.0,61429.0,0.16381492]
[1723346560562,0.813932,61430.0,61429.0,0.16381492]
[1723346560967,0.1628,61425.0,61423.0,0.0063216]
[1723346561168,0.1628,61425.0,61424.0,0.16381492]
[1723346561597,0.162799,61426.0,61424.0,0.17013652]
[1723346562000,0.162799,61426.0,61424.0,0.16381492]
[1723346562229,0.32558,61429.0,61425.0,0.0063216]
[1723346562230,0.325586,61428.0,61425.0,0.0063216]
[1723346562380,0.0036784,61432.0,61421.0,0.0063216]
[1723346562706,0.0036784,61429.0,61424.0,0.013]
[1723346562931,0.4884,61425.0,61424.0,0.013]
[1723346563269,0.814002,61425.0,61424.0,0.013]
[1723346563908,1.139604,61425.0,61424.0,0.013]
[1723346564107,0.162825,61416.0,61414.0,0.0063216]
[1723346564311,0.162825,61416.0,61414.0,0.16381492]
[1723346564534,0.162826,61415.0,61414.0,0.16381492]
[1723346564718,0.243327,61415.0,61410.0,0.1691606]
[1723346564924,0.243327,61415.0,61411.0,0.16381492]
[1723346565257,0.325669,61412.0,61407.0,0.0063216]
[1723346565408,0.325661,61414.0,61408.0,0.16381492]
[1723346565586,0.0805,61415.0,61407.0,0.0063216]
[1723346565587,0.162845,61408.0,61407.0,0.16381492]
[1723346566065,0.325701,61406.0,61399.0,0.0009119]
[1723346566308,0.325702,61406.0,61400.0,0.17013652]
[1723346566499,0.0638,61408.0,61400.0,0.16381492]
[1723346566500,0.325706,61405.0,61400.0,0.16381492]
[1723346566655,0.162863,61401.0,61400.0,0.16381492]
[1723346566856,0.243363,61401.0,61400.0,0.16381492]
[1723346567074,0.0805,61401.0,61399.0,0.0009119]
[1723346567274,0.162866,61400.0,61399.0,0.0009119]
[1723346567522,0.81433,61400.0,61399.0,0.0009119]
[1723346567796,0.0805,61401.0,61400.0,0.1691876]
[1723346568026,0.162854,61405.0,61404.0,0.0063216]
[1723346568155,0.325666,61413.0,61406.0,0.0063216]
[1723346568354,0.162834,61412.0,61411.0,0.0063216]
[1723346568982,0.325669,61412.0,61407.0,0.17013652]
[1723346569184,0.0805,61414.0,61411.0,0.0063216]
[1723346569387,0.24333,61414.0,61411.0,0.0063216]
[1723346569590,0.24333,61414.0,61407.0,0.16381492]
[1723346569591,0.170836,61412.0,61407.0,0.17013652]
[1723346569800,0.170836,61412.0,61407.0,0.33298352]
[1723346569971,0.008,61412.0,61411.0,0.0063216]
[1723346570179,0.162833,61413.0,61412.0,0.0063216]
[1723346570399,0.0805,61414.0,61411.0,0.0063216]
[1723346570600,0.25433,61414.0,61412.0,0.0063216]
[1723346570921,0.0915,61414.0,61413.0,0.0063216]
[1723346571060,0.254329,61414.0,61413.0,0.0063216]
[1723346571257,0.162834,61412.0,61409.0,0.0063216]
[1723346571480,0.0915,61414.0,61411.0,0.0063216]
[1723346571721,0.0955,61414.0,61411.0,0.0063216]
[1723346572015,0.0915,61414.0,61411.0,0.0063216]
[1723346572418,0.003,61412.0,61411.0,0.17013652]
[1723346572719,0.0805,61414.0,61411.0,0.17013652]
[1723346573021,0.0805,61414.0,61413.0,0.0063216]
[1723346573780,0.162831,61413.0,61412.0,0.17013652]
[1723346573994,0.0915,61414.0,61412.0,0.17013652]
[1723346574195,0.25833,61414.0,61412.0,0.17013652]
[1723346574395,0.0805,61414.0,61412.0,0.17013652]
[1723346574626,0.4713,61434.0,61428.0,0.0063216]
[1723346574801,0.0805,61438.0,61437.0,0.162768]
[1723346575003,0.0805,61438.0,61437.0,0.1690896]
[1723346575210,0.0805,61438.0,61437.0,0.0063216]
[1723346575410,0.0805,61438.0,61437.0,0.1690896]
[1723346575813,0.0805,61438.0,61437.0,0.0063216]
[1723346576036,0.0805,61438.0,61437.0,0.0093216]
[1723346576613,0.0805,61438.0,61437.0,0.003]
[1723346576913,0.081329,61443.0,61442.0,0.0063216]
[1723346577158,0.000829,61443.0,61442.0,0.33289152]
[1723346577305,0.000829,61443.0,61442.0,0.98391152]
[1723346577705,0.000829,61443.0,61442.0,1.30942152]
[1723346579586,0.007829,61443.0,61442.0,1.31042152]
[1723346580101,0.000829,61443.0,61442.0,1.30942152]
[1723346580235,0.001829,61443.0,61442.0,1.31642152]
[1723346581238,0.000829,61443.0,61442.0,0.98391152]
[1723346582102,0.000829,61443.0,61442.0,1.30942152]
[1723346582506,0.000829,61443.0,61442.0,1.11907661]
[1723346582851,0.001829,61443.0,61442.0,1.12807661]
[1723346583578,0.001829,61443.0,61442.0,1.45358661]
[1723346583884,0.001829,61443.0,61442.0,1.12807661]
[1723346584997,0.001829,61443.0,61442.0,1.45357834]
[1723346585798,0.001829,61443.0,61442.0,1.55357834]
[1723346586465,0.001829,61443.0,61442.0,1.55357184]
[1723346586666,0.001829,61443.0,61442.0,1.69807047]
[1723346587487,0.001829,61443.0,61442.0,1.72107047]
[1723346588519,0.001829,61443.0,61442.0,1.72107042]
[1723346589855,0.001829,61443.0,61442.0,1.12806042]
[1723346590236,0.001829,61443.0,61442.0,0.99291152]
[1723346590455,0.001829,61443.0,61442.0,0.17281492]
[1723346591058,0.001829,61443.0,61442.0,0.33556992]
[1723346591422,0.001829,61443.0,61442.0,0.34189152]
[1723346591627,0.001829,61443.0,61442.0,0.33289152]
[1723346591628,0.000829,61443.0,61442.0,0.33289152]
[1723346592077,0.001829,61443.0,61442.0,0.17013652]
[1723346592276,0.001829,61443.0,61442.0,0.65840152]
[1723346592519,0.000829,61443.0,61442.0,0.65840152]
[1723346592668,0.000829,61443.0,61442.0,0.33289152]
[1723346592854,0.001829,61443.0,61442.0,0.65840152]
[1723346593683,0.001829,61443.0,61442.0,0.16381492]
[1723346594282,0.001829,61443.0,61442.0,0.32656992]
[1723346594534,0.001829,61443.0,61442.0,0.16381492]
[1723346594770,0.08,61437.0,61433.0,0.0063216]
[1723346594971,0.08,61437.0,61434.0,0.16381492]
[1723346595082,0.162773,61435.0,61434.0,0.16381492]
[1723346595289,0.162773,61435.0,61420.0,0.0063216]
[1723346595290,0.0619,61435.0,61420.0,0.0063216]
[1723346595508,0.08,61434.0,61421.0,0.32662392]
[1723346595711,0.0655784,61435.0,61421.0,0.16381492]
[1723346595712,0.1628,61425.0,61421.0,0.16381492]
[1723346595910,0.162803,61424.0,61421.0,0.16381492]
[1723346596142,0.32557,61431.0,61423.0,0.0063216]
[1723346596484,0.0836784,61432.0,61424.0,0.17013652]
[1723346596485,0.162796,61427.0,61424.0,0.17013652]
[1723346596683,0.162787,61430.0,61426.0,0.0063216]
[1723346596882,0.162787,61430.0,61427.0,0.17013652]
[1723346597113,0.08,61432.0,61427.0,0.16381492]
[1723346597259,0.325569,61431.0,61425.0,0.03]
[1723346597459,0.488392,61426.0,61425.0,0.19381492]
[1723346597661,0.568392,61426.0,61425.0,0.19381492]
[1723346597846,0.08,61426.0,61425.0,0.19381492]
[1723346598047,0.162756,61442.0,61436.0,0.162769]
[1723346598255,0.0129147,61444.0,61437.0,0.16381492]
[1723346598456,0.0129147,61444.0,61439.0,0.1690826]
[1723346598668,0.0129147,61444.0,61439.0,0.17013652]
[1723346599081,0.0129147,61444.0,61440.0,0.0063216]
[1723346599399,0.0129147,61444.0,61441.0,0.0063216]
[1723346599798,0.013829,61443.0,61442.0,0.98391152]
[1723346599925,0.013829,61443.0,61442.0,0.65840152]
[1723346600135,0.013829,61443.0,61442.0,0.16381492]
[1723346600357,0.013829,61443.0,61442.0,0.65840152]
[1723346600758,0.013829,61443.0,61442.0,0.33289152]
[1723346601527,0.000829,61443.0,61442.0,0.33289152]
[1723346601858,0.014829,61443.0,61442.0,0.16381492]
[1723346602281,0.000829,61443.0,61442.0,0.16381492]
[1723346602430,0.000829,61443.0,61442.0,0.33289152]
[1723346602636,0.007829,61443.0,61442.0,0.33389152]
[1723346602839,0.007829,61443.0,61442.0,0.32756992]
[1723346603042,0.000829,61443.0,61442.0,0.32656992]
[1723346603445,0.003829,61443.0,61442.0,0.16381492]
[1723346604024,0.003829,61443.0,61441.0,0.03]
[1723346604213,0.003829,61443.0,61441.0,0.19381492]
[1723346604419,0.162755,61442.0,61441.0,0.03]
[1723346604624,0.891575,61442.0,61441.0,0.03]
[1723346604824,0.566065,61442.0,61441.0,0.03]
[1723346604999,0.325527,61439.0,61432.0,0.16278]
[1723346605200,0.325527,61439.0,61429.0,0.325575]
[1723346605201,0.162769,61437.0,61433.0,0.32659292]
[1723346605402,0.40331,61442.0,61435.0,0.162773]
[1723346605403,0.325516,61441.0,61435.0,0.162773]
[1723346605580,0.162764,61439.0,61435.0,0.16381492]
[1723346605930,0.15959838,61437.0,61432.0,0.162779]
[1723346606083,0.162774,61435.0,61431.0,0.162783]
[1723346606283,0.162774,61435.0,61431.0,0.32659792]
[1723346606510,0.1428,61438.0,61423.0,0.0063216]
[1723346606511,0.0036784,61436.0,61423.0,0.0063216]
[1723346606686,0.0778,61429.0,61425.0,0.3319196]
[1723346606887,0.0778,61429.0,61426.0,0.17013652]
[1723346607157,0.24059,61429.0,61428.0,0.03]
[1723346607275,0.566169,61429.0,61428.0,0.03]
[1723346607472,0.24059,61429.0,61428.0,0.03]
[1723346607831,0.566169,61429.0,61428.0,0.03]
[1723346608027,0.24059,61429.0,61428.0,0.03]
[1723346608227,0.566169,61429.0,61428.0,0.03]
[1723346608588,0.0778,61429.0,61428.0,0.0363216]
[1723346608915,0.0778,61437.0,61435.0,0.0063216]
[1723346609291,0.162771,61436.0,61433.0,0.0063216]
[1723346609498,0.162771,61436.0,61435.0,0.0063216]
[1723346609718,0.0778,61437.0,61435.0,0.0063216]
[1723346609921,0.0778,61437.0,61433.0,0.33291352]
[1723346610254,0.240568,61437.0,61433.0,0.33291352]
[1723346611115,0.0778,61437.0,61436.0,0.0063216]
[1723346611338,0.0888,61437.0,61436.0,0.0063216]
[1723346611553,0.0888,61437.0,61436.0,0.65844952]
[1723346611718,0.011,61437.0,61436.0,0.65844952]
[1723346611919,0.340555,61442.0,61441.0,0.0063216]
[1723346612248,0.065829,61443.0,61441.0,0.0063216]
[1723346612249,0.000829,61443.0,61442.0,0.1690766]
[1723346612688,0.000829,61443.0,61442.0,0.98391152]
[1723346614256,0.000829,61443.0,61442.0,1.37102152]
[1723346614431,0.000829,61443.0,61442.0,1.44892152]
[1723346614634,0.010829,61443.0,61442.0,1.58508192]
[1723346615036,0.000829,61443.0,61442.0,1.58408192]
[1723346615448,0.000829,61443.0,61442.0,1.58608192]
[1723346615806,0.000829,61443.0,61442.0,1.58607238]
[1723346615981,0.000829,61443.0,61442.0,1.58407238]
[1723346616124,0.001829,61443.0,61442.0,1.59307238]
[1723346616795,0.001829,61443.0,61442.0,1.91858238]
[1723346617594,0.001829,61443.0,61442.0,1.78343152]
[1723346618470,0.001829,61443.0,61442.0,1.91858089]
[1723346620201,0.001829,61443.0,61442.0,1.78343152]
[1723346621416,0.001829,61443.0,61442.0,1.91858091]
[1723346621791,0.001829,61443.0,61442.0,1.59307091]
[1723346624673,0.001829,61443.0,61442.0,1.60598591]
[1723346625081,0.001829,61443.0,61442.0,1.47083652]
[1723346628112,0.001829,61443.0,61442.0,1.33133652]
[1723346628988,0.001829,61443.0,61442.0,1.46648599]
[1723346629490,0.001829,61443.0,61442.0,0.30796439]
[1723346629689,0.083929,61443.0,61442.0,0.30796439]
[1723346629916,0.083929,61443.0,61442.0,0.14414947]
[1723346630118,0.083929,61443.0,61442.0,0.009]
[1723346631190,0.082929,61443.0,61440.0,0.162759]
[1723346631392,0.082929,61443.0,61441.0,0.162757]
[1723346631757,0.082929,61443.0,61442.0,0.001]
[1723346632134,0.162758,61441.0,61437.0,0.162766]
[1723346632287,0.162758,61441.0,61436.0,0.0009152]
[1723346632288,0.0821,61440.0,61438.0,0.16381492]
[1723346632493,0.0821,61440.0,61439.0,0.1690846]
[1723346632807,0.0821,61440.0,61439.0,0.4946106]
[1723346633015,0.0821,61440.0,61439.0,0.1690846]
[1723346633609,0.0821,61440.0,61439.0,0.162763]
[1723346633813,0.0821,61440.0,61438.0,0.16381492]
[1723346634340,0.0821,61440.0,61439.0,0.4946106]
[1723346634562,0.0821,61440.0,61439.0,0.162763]
[1723346635110,0.0851,61440.0,61438.0,0.32657892]
[1723346635770,0.0821,61440.0,61438.0,0.16381492]
[1723346635971,0.0851,61440.0,61439.0,0.162763]
[1723346636677,0.0851,61440.0,61438.0,0.32657992]
[1723346636852,0.0851,61440.0,61438.0,0.16381492]
[1723346637174,0.0851,61440.0,61438.0,0.32657792]
[1723346637479,0.0851,61440.0,61439.0,0.162763]
[1723346637935,0.0821,61440.0,61439.0,0.162763]
[1723346638155,0.0851,61440.0,61439.0,0.162763]
[1723346638581,0.0851,61440.0,61438.0,0.162765]
[1723346638738,0.0821,61440.0,61438.0,0.162765]
[1723346638942,0.0851,61440.0,61438.0,0.162765]
[1723346639551,0.0821,61440.0,61438.0,0.162765]
[1723346639866,0.0851,61440.0,61438.0,0.162765]
[1723346640100,0.0851,61440.0,61436.0,0.3264552]
[1723346640257,0.0851,61440.0,61437.0,0.29899147]
[1723346640465,0.003,61440.0,61439.0,0.55354598]
[1723346640687,0.003,61440.0,61439.0,1.33977453]
[1723346640919,0.003,61440.0,61439.0,1.19465293]
[1723346641195,0.000829,61443.0,61442.0,0.8200966]
[1723346641433,0.000829,61443.0,61442.0,1.11908807]
[1723346641922,0.000829,61443.0,61442.0,1.44459807]
[1723346642152,0.000829,61443.0,61442.0,1.44458298]
[1723346642383,0.000829,61443.0,61442.0,1.44558298]
[1723346644869,0.000829,61443.0,61442.0,1.12007298]
[1723346645757,0.000829,61443.0,61442.0,1.12007217]
[1723346646660,0.000829,61443.0,61442.0,1.44558217]
[1723346648536,0.000829,61443.0,61442.0,1.50768217]
[1723346649251,0.000829,61443.0,61442.0,1.50668217]
[1723346649673,0.001829,61443.0,61442.0,1.51468217]
[1723346649876,0.001829,61443.0,61442.0,1.5146742]
[1723346651138,0.001829,61443.0,61442.0,1.51467424]
[1723346652101,0.001829,61443.0,61442.0,1.12706424]
[1723346652894,0.001829,61443.0,61442.0,1.1270697]
[1723346654700,0.000829,61443.0,61442.0,1.1190697]
[1723346654899,0.000829,61443.0,61442.0,0.4617281]
[1723346655099,0.000829,61443.0,61442.0,0.7935597]
[1723346655780,0.000829,61443.0,61442.0,0.13515818]
[1723346656068,0.000829,61443.0,61442.0,0.13815818]
[1723346656425,0.000829,61443.0,61441.0,0.192757]
[1723346656630,0.241081,61443.0,61442.0,0.1351699]
[1723346657238,0.162755,61442.0,61441.0,0.03]
[1723346657444,0.162755,61442.0,61441.0,0.16517405]
[1723346657663,0.241082,61443.0,61441.0,0.17149565]
[1723346657862,0.241082,61443.0,61442.0,0.002]
[1723346658265,0.162755,61442.0,61441.0,0.03]
[1723346658689,0.162755,61442.0,61441.0,0.031]
[1723346659309,1.217685,61442.0,61441.0,0.03]
[1723346659488,0.488296,61438.0,61437.0,0.0009152]
[1723346659700,1.4366364,61438.0,61437.0,0.0009152]
[1723346659904,1.4466364,61438.0,61437.0,0.0009152]
[1723346660141,1.619726,61438.0,61437.0,0.0009152]
[1723346660346,1.5466364,61438.0,61437.0,0.0009152]
[1723346660544,1.78351535,61438.0,61437.0,0.0009152]
[1723346660714,1.87460102,61438.0,61437.0,0.0009152]
[1723346661115,1.71045132,61438.0,61437.0,0.0009152]
[1723346661478,1.7835132,61438.0,61437.0,0.0009152]
[1723346661651,1.71045132,61438.0,61437.0,0.0009152]
[1723346662418,1.7731396,61438.0,61437.0,0.0019152]
[1723346662898,1.7591396,61438.0,61437.0,0.0009152]
[1723346663072,2.32194803,61438.0,61437.0,0.0009152]
[1723346663300,1.3046544,61437.0,61436.0,0.0009152]
[1723346663613,1.91700532,61437.0,61436.0,0.0009152]
[1723346663759,1.91700532,61437.0,61424.0,0.0009119]
[1723346663760,0.9592784,61425.0,61424.0,0.0009119]
[1723346663967,1.4268784,61425.0,61424.0,0.0009119]
[1723346664171,1.5268784,61425.0,61424.0,0.0009119]
[1723346665199,1.5468784,61425.0,61424.0,0.0009119]
[1723346665403,1.5468784,61425.0,61424.0,0.0019119]
[1723346665624,1.5538784,61425.0,61424.0,0.0019119]
[1723346666019,1.71769332,61425.0,61424.0,0.0019119]
[1723346667507,1.5332,61425.0,61424.0,0.0009119]
[1723346667708,1.5548784,61425.0,61424.0,0.0009119]
[1723346668473,1.71501492,61425.0,61424.0,0.0009119]
[1723346668613,1.71869332,61425.0,61424.0,0.0009119]
[1723346668809,1.71069332,61425.0,61424.0,0.0009119]
[1723346669011,2.15759742,61425.0,61424.0,0.0009119]
[1723346669333,2.16559742,61425.0,61424.0,0.0009119]
[1723346670694,0.0758,61402.0,61399.0,0.1701015]
[1723346670896,0.63059,61401.0,61399.0,0.0009119]
[1723346671100,0.956317,61401.0,61399.0,0.0009119]
[1723346671519,1.357844,61401.0,61399.0,0.0009119]
[1723346671691,1.418744,61401.0,61399.0,0.0009119]
[1723346672350,1.419744,61401.0,61400.0,0.0019119]
[1723346672789,1.093017,61401.0,61400.0,0.0009119]
[1723346672994,1.107017,61401.0,61400.0,0.0009119]
[1723346673172,0.78129,61401.0,61400.0,0.0009119]
[1723346673333,1.117017,61401.0,61400.0,0.0009119]
[1723346673532,1.1306954,61401.0,61400.0,0.0009119]
[1723346673736,1.1206954,61401.0,61400.0,0.0009119]
[1723346673933,1.117017,61401.0,61400.0,0.0009119]
[1723346674134,1.103017,61401.0,61400.0,0.0009119]
[1723346674411,0.1036784,61405.0,61400.0,0.0072335]
[1723346674412,0.0609,61404.0,61400.0,0.0072335]
[1723346674728,0.162855,61404.0,61403.0,0.0063216]
[1723346674869,0.0758,61406.0,61405.0,0.0063216]
[1723346675048,0.1,61407.0,61406.0,0.0063216]
[1723346675476,0.325701,61406.0,61400.0,0.17104842]
[1723346675813,0.162859,61403.0,61402.0,0.0063216]
[1723346676024,0.172856,61404.0,61403.0,0.0063216]
[1723346676246,0.162863,61401.0,61400.0,0.0009119]
[1723346676452,0.48859,61401.0,61400.0,0.0009119]
[1723346676566,0.54949,61401.0,61400.0,0.0009119]